fUSD/lending_fUSD_20240301
["ID","MTS","AMOUNT","RATE_DAILY","PERIOD"]
[315900172,1709255440919,-500.0,0.00021917,2]
[315900173,1709255440928,-500.0,0.00021917,2]
[315900174,1709255440937,-500.0,0.00021917,2]
[315900175,1709255440946,-513.20338408,0.00021917,2]
[315900176,1709255440956,-500.0,0.00021917,2]
[315900177,1709255440968,-500.0,0.00021917,2]
[315900178,1709255440977,-500.0,0.00021917,2]
[315900179,1709255440986,-500.0,0.00021917,2]
[315900180,1709255440995,-500.0,0.00021917,2]
[315900181,1709255441005,-500.0,0.00021917,2]
[315900182,1709255441014,-500.0,0.00021917,2]
[315900183,1709255441023,-500.0,0.00021917,2]
[315900184,1709255441033,-500.0,0.00021917,2]
[315900185,1709255441042,-500.0,0.00021917,2]
[315900186,1709255441052,-500.0,0.00021917,2]
[315900187,1709255441061,-500.0,0.00021917,2]
[315900188,1709255441070,-500.0,0.00021917,2]
[315900189,1709255441079,-500.0,0.00021917,2]
[315900190,1709255441088,-500.0,0.00021917,2]
[315900191,1709255441098,-500.0,0.00021917,2]
[315900192,1709255441107,-500.0,0.00021917,2]
[315900193,1709255441116,-571.77,0.00021917,2]
[315900194,1709255441126,-500.0,0.00021917,2]
[315900195,1709255441135,-500.0,0.00021917,2]
[315900196,1709255441144,-500.0,0.00021917,2]
[315900197,1709255441153,-500.0,0.00021917,2]
[315900198,1709255441163,-500.0,0.00021917,2]
[315900199,1709255441172,-500.0,0.00021917,2]
[315900200,1709255441181,-1167.52,0.00021917,2]
[315900201,1709255441190,-500.0,0.00021917,2]
[315900202,1709255441199,-500.0,0.00021917,2]
[315900203,1709255441209,-500.0,0.00021917,2]
[315900204,1709255441221,-500.0,0.00021917,2]
[315900205,1709255441231,-500.0,0.00021917,2]
[315900206,1709255441240,-500.0,0.00021917,2]
[315900207,1709255441249,-500.0,0.00021917,2]
[315900208,1709255441258,-500.0,0.00021917,2]
[315900209,1709255441268,-500.0,0.00021917,2]
[315900210,1709255441277,-500.0,0.00021917,2]
[315900211,1709255441287,-500.0,0.00021917,2]
[315900212,1709255441297,-500.0,0.00021917,2]
[315900213,1709255441307,-1159.31,0.00021917,2]
[315900214,1709255441316,-500.0,0.00021917,2]
[315900215,1709255441325,-500.0,0.00021917,2]
[315900216,1709255441335,-500.0,0.00021917,2]
[315900217,1709255441345,-763.0,0.00021917,2]
[315900218,1709255441354,-500.0,0.00021917,2]
[315900219,1709255441364,-500.0,0.00021917,2]
[315900220,1709255441374,-500.0,0.00021917,2]
[315900221,1709255441383,-500.0,0.00021917,2]
[315900222,1709255441393,-500.0,0.00021917,2]
[315900223,1709255441402,-500.0,0.00021917,2]
[315900224,1709255441412,-500.0,0.00021917,2]
[315900225,1709255441422,-500.0,0.00021917,2]
[315900226,1709255441431,-500.0,0.00021917,2]
[315900227,1709255441441,-519.81,0.00021917,2]
[315900228,1709255441450,-500.0,0.00021917,2]
[315900229,1709255441460,-500.0,0.00021917,2]
[315900230,1709255441471,-500.0,0.00021917,2]
[315900231,1709255441481,-500.0,0.00021917,2]
[315900232,1709255441490,-500.0,0.00021917,2]
[315900233,1709255441500,-500.0,0.00021917,2]
[315900234,1709255441509,-500.0,0.00021917,2]
[315900235,1709255441520,-500.0,0.00021917,2]
[315900236,1709255441529,-421.95367951,0.00021917,2]
[315900237,1709255441539,-500.0,0.00021917,2]
[315900238,1709255441548,-500.0,0.00021917,2]
[315900239,1709255441558,-564.42,0.00021917,2]
[315900240,1709255441567,-500.0,0.00021917,2]
[315900241,1709255441577,-500.0,0.00021917,2]
[315900242,1709255441586,-500.0,0.00021917,2]
[315900243,1709255441595,-500.0,0.00021917,2]
[315900244,1709255441605,-500.0,0.00021917,2]
[315900245,1709255441614,-500.0,0.00021917,2]
[315900246,1709255441623,-500.0,0.00021917,2]
[315900247,1709255441633,-500.0,0.00021917,2]
[315900248,1709255441642,-500.0,0.00021917,2]
[315900249,1709255441651,-500.0,0.00021917,2]
[315900250,1709255441660,-500.0,0.00021917,2]
[315900251,1709255441670,-500.0,0.00021917,2]
[315900252,1709255441683,-500.0,0.00021917,2]
[315900253,1709255441692,-500.0,0.00021917,2]
[315900254,1709255441701,-500.0,0.00021917,2]
[315900255,1709255441710,-500.0,0.00021917,2]
[315900256,1709255441721,-500.0,0.00021917,2]
[315900257,1709255441730,-500.0,0.00021917,2]
[315900258,1709255441739,-500.0,0.00021917,2]
[315900259,1709255441749,-500.0,0.00021917,2]
[315900260,1709255441758,-500.0,0.00021917,2]
[315900261,1709255441767,-500.0,0.00021917,2]
[315900262,1709255441777,-500.0,0.00021917,2]
[315900263,1709255441787,-604.86,0.00021917,2]
[315900264,1709255441796,-500.0,0.00021917,2]
[315900265,1709255441806,-500.0,0.00021917,2]
[315900266,1709255441816,-1153.06,0.00021917,2]
[315900267,1709255441825,-500.0,0.00021917,2]
[315900268,1709255441834,-500.0,0.00021917,2]
[315900269,1709255441843,-500.0,0.00021917,2]
[315900270,1709255441853,-499.3579084,0.00021917,2]
[315900271,1709255441863,-500.0,0.00021917,2]
[315900272,1709255441872,-500.0,0.00021917,2]
[315900273,1709255441881,-500.0,0.00021917,2]
[315900274,1709255441890,-500.0,0.00021917,2]
[315900275,1709255441900,-500.0,0.00021917,2]
[315900276,1709255441909,-500.0,0.00021917,2]
[315900277,1709255441918,-500.0,0.00021917,2]
[315900278,1709255441927,-500.0,0.00021917,2]
[315900279,1709255441937,-500.0,0.00021917,2]
[315900280,1709255441946,-500.0,0.00021917,2]
[315900281,1709255441955,-500.0,0.00021917,2]
[315900282,1709255441965,-500.0,0.00021917,2]
[315900283,1709255441975,-189.90595436,0.00021917,2]
[315900284,1709255441984,-500.11268,0.00021917,2]
[315900285,1709255441994,-500.0,0.00021917,2]
[315900286,1709255442003,-658.45,0.00021917,2]
[315900287,1709255442012,-500.0,0.00021917,2]
[315900288,1709255442021,-500.0,0.00021917,2]
[315900289,1709255442031,-500.0,0.00021917,2]
[315900290,1709255442040,-500.0,0.00021917,2]
[315900291,1709255442049,-500.0,0.00021917,2]
[315900292,1709255442058,-500.0,0.00021917,2]
[315900293,1709255442068,-500.0,0.00021917,2]
[315900294,1709255442077,-361.87543172,0.00021917,2]
[315900295,1709255442087,-500.0,0.00021917,2]
[315900296,1709255442096,-582.65,0.00021917,2]
[315900297,1709255442106,-500.0,0.00021917,2]
[315900298,1709255442115,-500.0,0.00021917,2]
[315900299,1709255442124,-500.0,0.00021917,2]
[315900300,1709255442133,-500.0,0.00021917,2]
[315900301,1709255442142,-500.0,0.00021917,2]
[315900302,1709255442152,-500.0,0.00021917,2]
[315900303,1709255442161,-500.0,0.00021917,2]
[315900304,1709255442170,-500.0,0.00021917,2]
[315900305,1709255442179,-500.0,0.00021917,2]
[315900306,1709255442188,-500.0,0.00021917,2]
[315900307,1709255442197,-541.61,0.00021917,2]
[315900308,1709255442207,-500.0,0.00021917,2]
[315900309,1709255442218,-500.0,0.00021917,2]
[315900310,1709255442227,-500.0,0.00021917,2]
[315900311,1709255442236,-500.0,0.00021917,2]
[315900312,1709255442245,-500.0,0.00021917,2]
[315900313,1709255442254,-500.0,0.00021917,2]
[315900314,1709255442264,-360.52201329,0.00021917,2]
[315900315,1709255442273,-500.0,0.00021917,2]
[315900316,1709255442282,-500.0,0.00021917,2]
[315900317,1709255442291,-606.11,0.00021917,2]
[315900318,1709255442300,-500.0,0.00021917,2]
[315900319,1709255442309,-500.0,0.00021917,2]
[315900320,1709255442318,-500.0,0.00021917,2]
[315900321,1709255442328,-500.0,0.00021917,2]
[315900322,1709255442337,-500.0,0.00021917,2]
[315900323,1709255442346,-586.85,0.00021917,2]
[315900324,1709255442356,-500.0,0.00021917,2]
[315900325,1709255442365,-500.0,0.00021917,2]
[315900326,1709255442375,-1190.02,0.00021917,2]
[315900327,1709255442385,-504.74,0.00021917,2]
[315900328,1709255442394,-500.0,0.00021917,2]
[315900329,1709255442403,-500.0,0.00021917,2]
[315900330,1709255442413,-500.0,0.00021917,2]
[315900331,1709255442423,-500.0,0.00021917,2]
[315900332,1709255442433,-546.21,0.00021917,2]
[315900333,1709255442442,-500.0,0.00021917,2]
[315900334,1709255442452,-629.07,0.00021917,2]
[315900335,1709255442461,-500.0,0.00021917,2]
[315900336,1709255442471,-500.0,0.00021917,2]
[315900337,1709255442481,-500.0,0.00021917,2]
[315900338,1709255442490,-559.1,0.00021917,2]
[315900339,1709255442500,-732.15,0.00021917,2]
[315900340,1709255442509,-608.01822205,0.00021917,2]
[315900341,1709255442519,-500.0,0.00021917,2]
[315900342,1709255442528,-500.0,0.00021917,2]
[315900343,1709255442538,-500.0,0.00021917,2]
[315900344,1709255442547,-722.97,0.00021917,2]
[315900345,1709255442557,-500.0,0.00021917,2]
[315900346,1709255442566,-500.0,0.00021917,2]
[315900347,1709255442575,-645.06,0.00021917,2]
[315900348,1709255442585,-500.0,0.00021917,2]
[315900349,1709255442594,-500.0,0.00021917,2]
[315900350,1709255442604,-500.0,0.00021917,2]
[315900351,1709255442613,-627.56,0.00021917,2]
[315900352,1709255442622,-500.0,0.00021917,2]
[315900353,1709255442632,-1629.27,0.00021917,2]
[315900354,1709255442641,-547.59,0.00021917,2]
[315900355,1709255442719,-500.0,0.00021917,2]
[315900356,1709255442728,-567.03,0.00021917,2]
[315900357,1709255442737,-561.06,0.00021917,2]
[315900358,1709255442746,-500.0,0.00021917,2]
[315900359,1709255442755,-500.0,0.00021917,2]
[315900360,1709255442767,-500.0,0.00021917,2]
[315900361,1709255442777,-500.0,0.00021917,2]
[315900362,1709255442786,-500.0,0.00021917,2]
[315900363,1709255442795,-500.0,0.00021917,2]
[315900364,1709255442804,-500.0,0.00021917,2]
[315900365,1709255442813,-500.0,0.00021917,2]
[315900366,1709255442822,-500.0,0.00021917,2]
[315900367,1709255442831,-500.0,0.00021917,2]
[315900368,1709255442841,-500.0,0.00021917,2]
[315900369,1709255442850,-500.0,0.00021917,2]
[315900370,1709255442860,-866.59,0.00021917,2]
[315900371,1709255442870,-500.0,0.00021917,2]
[315900372,1709255442879,-860.29,0.00021917,2]
[315900373,1709255442888,-500.0,0.00021917,2]
[315900374,1709255442897,-500.0,0.00021917,2]
[315900375,1709255442907,-571.4,0.00021917,2]
[315900376,1709255442916,-500.0,0.00021917,2]
[315900377,1709255442926,-611.15,0.00021917,2]
[315900378,1709255442935,-500.0,0.00021917,2]
[315900379,1709255442944,-715.23,0.00021917,2]
[315900380,1709255442953,-500.0,0.00021917,2]
[315900381,1709255442962,-508.4,0.00021917,2]
[315900382,1709255442971,-500.0,0.00021917,2]
[315900383,1709255442981,-500.0,0.00021917,2]
[315900384,1709255442990,-500.0,0.00021917,2]
[315900385,1709255442999,-500.0,0.00021917,2]
[315900386,1709255443008,-500.0,0.00021917,2]
[315900387,1709255443017,-500.0,0.00021917,2]
[315900388,1709255443027,-500.0,0.00021917,2]
[315900389,1709255443036,-500.0,0.00021917,2]
[315900390,1709255443045,-233.06171154,0.00021917,2]
[315900391,1709255443054,-500.0,0.00021917,2]
[315900392,1709255443063,-500.0,0.00021917,2]
[315900394,1709255443072,-500.0,0.00021917,2]
[315900396,1709255443081,-500.0,0.00021917,2]
[315900397,1709255443090,-165.92,0.00021917,2]
[315900398,1709255443099,-561.95236345,0.00021917,2]
[315900399,1709255443109,-500.0,0.00021917,2]
[315900400,1709255443118,-613.5,0.00021917,2]
[315900401,1709255443127,-500.0,0.00021917,2]
[315900402,1709255443136,-500.0,0.00021917,2]
[315900403,1709255443145,-500.0,0.00021917,2]
[315900404,1709255443154,-500.0,0.00021917,2]
[315900405,1709255443163,-500.0,0.00021917,2]
[315900406,1709255443173,-547.68541254,0.00021917,2]
[315900407,1709255443182,-528.35,0.00021917,2]
[315900409,1709255443191,-500.0,0.00021917,2]
[315900411,1709255443200,-500.0,0.00021917,2]
[315900413,1709255443209,-500.0,0.00021917,2]
[315900414,1709255443220,-500.0,0.00021917,2]
[315900415,1709255443229,-500.0,0.00021917,2]
[315900416,1709255443238,-500.0,0.00021917,2]
[315900417,1709255443247,-500.0,0.00021917,2]
[315900418,1709255443256,-500.0,0.00021917,2]
[315900419,1709255443265,-500.0,0.00021917,2]
[315900420,1709255443275,-500.0,0.00021917,2]
[315900421,1709255443283,-500.0,0.00021917,2]
[315900422,1709255443292,-516.95145207,0.00021917,2]
[315900423,1709255443302,-500.0,0.00021917,2]
[315900424,1709255443311,-500.0,0.00021917,2]
[315900425,1709255443321,-862.37,0.00021917,2]
[315900426,1709255443330,-831.59,0.00021917,2]
[315900427,1709255443340,-500.0,0.00021917,2]
[315900428,1709255443350,-500.0,0.00021917,2]
[315900429,1709255443359,-646.67,0.00021917,2]
[315900430,1709255443369,-500.0,0.00021917,2]
[315900431,1709255443378,-500.0,0.00021917,2]
[315900432,1709255443387,-500.0,0.00021917,2]
[315900433,1709255443396,-500.0,0.00021917,2]
[315900434,1709255443405,-500.0,0.00021917,2]
[315900435,1709255443414,-500.0,0.00021917,2]
[315900436,1709255443423,-500.0,0.00021917,2]
[315900437,1709255443432,-6297.17,0.00021917,2]
[315900438,1709255443443,-500.0,0.00021917,2]
[315900439,1709255443453,-500.0,0.00021917,2]
[315900440,1709255443463,-500.0,0.00021917,2]
[315900441,1709255443472,-500.0,0.00021917,2]
[315900442,1709255443481,-500.0,0.00021917,2]
[315900443,1709255443491,-8707.01,0.00021917,2]
[315900444,1709255443501,-500.0,0.00021917,2]
[315900445,1709255443511,-500.0,0.00021917,2]
[315900446,1709255443520,-680.91,0.00021917,2]
[315900447,1709255443529,-543.61,0.00021917,2]
[315900448,1709255443539,-5314.25,0.00021917,2]
[315900449,1709255443549,-782.37,0.00021917,2]
[315900450,1709255443559,-500.0,0.00021917,2]
[315900451,1709255443567,-6674.98,0.00021917,2]
[315900452,1709255443577,-500.0,0.00021917,2]
[315900453,1709255443588,-538.21,0.00021917,2]
[315900454,1709255443599,-500.0,0.00021917,2]
[315900455,1709255443609,-540.26,0.00021917,2]
[315900456,1709255443618,-500.0,0.00021917,2]
[315900458,1709255443627,-2022.05,0.00021917,2]
[315900460,1709255443637,-734.31,0.00021917,2]
[315900462,1709255443646,-553.77,0.00021917,2]
[315900464,1709255443655,-663.27,0.00021917,2]
[315900466,1709255443664,-1252.49,0.00021917,2]
[315900468,1709255443673,-558.01,0.00021917,2]
[315900470,1709255443682,-500.0,0.00021917,2]
[315900471,1709255443696,-558.41500252,0.00021917,2]
[315900474,1709255443705,-500.0,0.00021917,2]
[315900476,1709255443716,-500.0,0.00021917,2]
[315900478,1709255443725,-3204.58,0.00021917,2]
[315900480,1709255443735,-874.89,0.00021917,2]
[315900481,1709255443744,-500.0,0.00021917,2]
[315900482,1709255443753,-500.0,0.00021917,2]
[315900483,1709255443763,-969.98,0.00021917,2]
[315900484,1709255443772,-500.0,0.00021917,2]
[315900485,1709255443781,-500.0,0.00021917,2]
[315900486,1709255443790,-1266.38,0.00021917,2]
[315900488,1709255443799,-500.0,0.00021917,2]
[315900490,1709255443808,-500.0,0.00021917,2]
[315900491,1709255443816,-1459.58,0.00021917,2]
[315900492,1709255443825,-624.12,0.00021917,2]
[315900493,1709255443834,-705.25,0.00021917,2]
[315900494,1709255443845,-500.0,0.00021917,2]
[315900496,1709255443854,-500.0,0.00021917,2]
[315900498,1709255443863,-807.29,0.00021917,2]
[315900500,1709255443872,-2909.33,0.00021917,2]
[315900502,1709255443881,-1473.62,0.00021917,2]
[315900504,1709255443889,-593.52,0.00021917,2]
[315900506,1709255443898,-500.0,0.00021917,2]
[315900508,1709255443907,-568.79,0.00021917,2]
[315900510,1709255443916,-1263.61,0.00021917,2]
[315900511,1709255443926,-500.0,0.00021917,2]
[315900513,1709255443935,-1514.66,0.00021917,2]
[315900515,1709255443944,-500.0,0.00021917,2]
[315900517,1709255443953,-3162.98,0.00021917,2]
[315900519,1709255443963,-1051.24,0.00021917,2]
[315900521,1709255443972,-500.0,0.00021917,2]
[315900523,1709255443981,-500.0,0.00021917,2]
[315900525,1709255443990,-1786.65,0.00021917,2]
[315900527,1709255444000,-500.0,0.00021917,2]
[315900529,1709255444009,-809.82,0.00021917,2]
[315900531,1709255444018,-500.0,0.00021917,2]
[315900533,1709255444027,-1111.15,0.00021917,2]
[315900535,1709255444035,-500.0,0.00021917,2]
[315900537,1709255444044,-662.25,0.00021917,2]
[315900539,1709255444053,-847.38,0.00021917,2]
[315900541,1709255444062,-220.58175031,0.00021917,2]
[315900543,1709255444071,-1363.0,0.00021917,2]
[315900544,1709255444080,-500.0,0.00021917,2]
[315900546,1709255444089,-500.0,0.00021917,2]
[315900548,1709255444098,-22189.51,0.00021917,2]
[315900549,1709255444107,-500.0,0.00021917,2]
[315900551,1709255444115,-500.0,0.00021917,2]
[315900553,1709255444125,-1303.5,0.00021917,2]
[315900555,1709255444133,-8144.48,0.00021917,2]
[315900557,1709255444142,-500.0,0.00021917,2]
[315900559,1709255444151,-582.22,0.00021917,2]
[315900561,1709255444160,-246.57523422,0.00021917,2]
[315900563,1709255444169,-775.95,0.00021917,2]
[315900565,1709255444178,-1872.92,0.00021917,2]
[315900567,1709255444186,-500.0,0.00021917,2]
[315900569,1709255444196,-703.32,0.00021917,2]
[315900571,1709255444205,-5451.77,0.00021917,2]
[315900573,1709255444216,-872.66,0.00021917,2]
[315900575,1709255444224,-1136.33,0.00021917,2]
[315900577,1709255444234,-500.0,0.00021917,2]
[315900579,1709255444243,-500.0,0.00021917,2]
[315900581,1709255444252,-6111.92,0.00021917,2]
[315900583,1709255444261,-6885.38,0.00021917,2]
[315900585,1709255444270,-502.2,0.00021917,2]
[315900587,1709255444279,-5682.68,0.00021917,2]
[315900589,1709255444288,-500.0,0.00021917,2]
[315900591,1709255444297,-500.0,0.00021917,2]
[315900593,1709255444306,-500.0,0.00021917,2]
[315900595,1709255444315,-6052.05206725,0.00021917,2]
[315900597,1709255444324,-1515.09,0.00021917,2]
[315900599,1709255444333,-500.0,0.00021917,2]
[315900601,1709255444342,-564.0,0.00021917,2]
[315900603,1709255444354,-500.0,0.00021917,2]
[315900605,1709255444368,-500.0,0.00021917,2]
[315900607,1709255444377,-562.62,0.00021917,2]
[315900609,1709255444386,-500.0,0.00021917,2]
[315900611,1709255444395,-1373.25,0.00021917,2]
[315900613,1709255444404,-857.35,0.00021917,2]
[315900615,1709255444414,-500.0,0.00021917,2]
[315900617,1709255444423,-500.0,0.00021917,2]
[315900619,1709255444433,-728.23,0.00021917,2]
[315900621,1709255444443,-500.0,0.00021917,2]
[315900623,1709255444452,-507.54,0.00021917,2]
[315900625,1709255444462,-1484.62,0.00021917,2]
[315900627,1709255444473,-500.0,0.00021917,2]
[315900629,1709255444482,-500.0,0.00021917,2]
[315900631,1709255444491,-500.0,0.00021917,2]
[315900633,1709255444500,-500.0,0.00021917,2]
[315900635,1709255444509,-1144.03,0.00021917,2]
[315900637,1709255444519,-1047.98,0.00021917,2]
[315900640,1709255444529,-500.0,0.00021917,2]
[315900642,1709255444538,-970.8,0.00021917,2]
[315900644,1709255444548,-500.0,0.00021917,2]
[315900646,1709255444558,-537.85,0.00021917,2]
[315900648,1709255444567,-500.0,0.00021917,2]
[315900649,1709255444576,-1000.08,0.00021917,2]
[315900651,1709255444585,-500.0,0.00021917,2]
[315900653,1709255444595,-750.59,0.00021917,2]
[315900655,1709255444604,-525.72,0.00021917,2]
[315900657,1709255444613,-2160.86,0.00021917,2]
[315900659,1709255444622,-1790.92,0.00021917,2]
[315900661,1709255444632,-500.0,0.00021917,2]
[315900663,1709255444642,-507.7565371,0.00021917,2]
[315900666,1709255444651,-1423.4,0.00021917,2]
[315900667,1709255444661,-500.0,0.00021917,2]
[315900670,1709255444671,-717.61,0.00021917,2]
[315900672,1709255444684,-500.0,0.00021917,2]
[315900674,1709255444693,-500.0,0.00021917,2]
[315900676,1709255444702,-500.0,0.00021917,2]
[315900677,1709255444711,-621.04,0.00021917,2]
[315900679,1709255444722,-500.0,0.00021917,2]
[315900681,1709255444731,-500.0,0.00021917,2]
[315900684,1709255444740,-500.0,0.00021917,2]
[315900685,1709255444751,-500.0,0.00021917,2]
[315900687,1709255444762,-500.0,0.00021917,2]
[315900689,1709255444772,-1162.81,0.00021917,2]
[315900692,1709255444782,-702.32,0.00021917,2]
[315900694,1709255444792,-500.0,0.00021917,2]
[315900696,1709255444801,-500.0,0.00021917,2]
[315900698,1709255444810,-500.0,0.00021917,2]
[315900700,1709255444819,-528.1,0.00021917,2]
[315900702,1709255444828,-713.21,0.00021917,2]
[315900704,1709255444837,-929.1,0.00021917,2]
[315900705,1709255444846,-2211.72,0.00021917,2]
[315900707,1709255444855,-686.45,0.00021917,2]
[315900709,1709255444865,-1212.08,0.00021917,2]
[315900711,1709255444874,-500.0,0.00021917,2]
[315900714,1709255444883,-649.0,0.00021917,2]
[315900715,1709255444892,-500.0,0.00021917,2]
[315900717,1709255444901,-500.0,0.00021917,2]
[315900719,1709255444910,-500.0,0.00021917,2]
[315900721,1709255444918,-664.29,0.00021917,2]
[315900723,1709255444928,-808.9,0.00021917,2]
[315900725,1709255444937,-500.0,0.00021917,2]
[315900728,1709255444948,-500.0,0.00021917,2]
[315900729,1709255444957,-748.1,0.00021917,2]
[315900731,1709255444967,-1072.41,0.00021917,2]
[315900733,1709255444977,-537.38,0.00021917,2]
[315900735,1709255444986,-500.0,0.00021917,2]
[315900738,1709255444995,-500.0,0.00021917,2]
[315900740,1709255445004,-500.0,0.00021917,2]
[315900742,1709255445013,-500.0,0.00021917,2]
[315900744,1709255445022,-1959.59,0.00021917,2]
[315900746,1709255445031,-500.0,0.00021917,2]
[315900748,1709255445040,-1592.26,0.00021917,2]
[315900750,1709255445050,-629.77,0.00021917,2]
[315900752,1709255445060,-670.14,0.00021917,2]
[315900753,1709255445069,-3492.2,0.00021917,2]
[315900756,1709255445078,-510.17,0.00021917,2]
[315900757,1709255445088,-578.85,0.00021917,2]
[315900759,1709255445097,-806.5,0.00021917,2]
[315900761,1709255445106,-705.72,0.00021917,2]
[315900764,1709255445116,-1585.59,0.00021917,2]
[315900766,1709255445125,-1404.86,0.00021917,2]
[315900768,1709255445134,-500.0,0.00021917,2]
[315900769,1709255445143,-500.0,0.00021917,2]
[315900771,1709255445152,-500.0,0.00021917,2]
[315900773,1709255445161,-500.0,0.00021917,2]
[315900775,1709255445170,-945.16,0.00021917,2]
[315900777,1709255445179,-523.66,0.00021917,2]
[315900780,1709255445189,-726.05,0.00021917,2]
[315900782,1709255445199,-1554.32,0.00021917,2]
[315900784,1709255445208,-911.68,0.00021917,2]
[315900786,1709255445220,-500.0,0.00021917,2]
[315900788,1709255445230,-3019.36,0.00021917,2]
[315900789,1709255445238,-500.0,0.00021917,2]
[315900792,1709255445249,-500.0,0.00021917,2]
[315900793,1709255445258,-500.0,0.00021917,2]
[315900795,1709255445267,-641.13,0.00021917,2]
[315900797,1709255445276,-2327.3,0.00021917,2]
[315900799,1709255445285,-500.0,0.00021917,2]
[315900801,1709255445294,-842.95,0.00021917,2]
[315900803,1709255445304,-500.0,0.00021917,2]
[315900805,1709255445313,-500.0,0.00021917,2]
[315900807,1709255445323,-500.0,0.00021917,2]
[315900809,1709255445331,-500.0,0.00021917,2]
[315900811,1709255445340,-500.0,0.00021917,2]
[315900813,1709255445349,-500.0,0.00021917,2]
[315900814,1709255445359,-500.0,0.00021917,2]
[315900815,1709255445368,-715.11,0.00021917,2]
[315900816,1709255445376,-948.3,0.00021917,2]
[315900817,1709255445386,-650.34,0.00021917,2]
[315900818,1709255445395,-500.0,0.00021917,2]
[315900819,1709255445404,-678.37,0.00021917,2]
[315900820,1709255445413,-500.0,0.00021917,2]
[315900821,1709255445423,-500.0,0.00021917,2]
[315900822,1709255445432,-500.0,0.00021917,2]
[315900823,1709255445441,-923.57,0.00021917,2]
[315900824,1709255445450,-500.0,0.00021917,2]
[315900825,1709255445460,-500.0,0.00021917,2]
[315900826,1709255445472,-500.0,0.00021917,2]
[315900827,1709255445481,-2392.38,0.00021917,2]
[315900828,1709255445491,-500.0,0.00021917,2]
[315900829,1709255445500,-500.0,0.00021917,2]
[315900830,1709255445509,-2238.53,0.00021917,2]
[315900831,1709255445518,-500.0,0.00021917,2]
[315900832,1709255445527,-500.0,0.00021917,2]
[315900833,1709255445536,-1269.51,0.00021917,2]
[315900834,1709255445545,-521.33,0.00021917,2]
[315900835,1709255445554,-1004.28,0.00021917,2]
[315900836,1709255445563,-645.32,0.00021917,2]
[315900837,1709255445573,-500.0,0.00021917,2]
[315900838,1709255445583,-500.0,0.00021917,2]
[315900839,1709255445592,-500.0,0.00021917,2]
[315900840,1709255445602,-500.0,0.00021917,2]
[315900841,1709255445611,-528.04,0.00021917,2]
[315900842,1709255445619,-1511.86,0.00021917,2]
[315900843,1709255445628,-500.0,0.00021917,2]
[315900844,1709255445637,-1399.75,0.00021917,2]
[315900845,1709255445646,-500.0,0.00021917,2]
[315900846,1709255445655,-641.19,0.00021917,2]
[315900847,1709255445665,-500.0,0.00021917,2]
[315900848,1709255445674,-500.0,0.00021917,2]